bitfinex/quotes_SOLUSD_20241121
["timestamp","ask_amount","ask_price","bid_price","bid_amount"]
[1732175736022,17.2313,241.5,241.25,5.73240729]
[1732175736644,4.1409,241.49,241.25,5.73240729]
[1732175737141,17.2313,241.5,241.28,0.5]
[1732175737317,17.2313,241.5,241.29,6.35367291]
[1732175737517,17.2313,241.5,241.3,23.776884]
[1732175737715,17.2313,241.5,241.33,23.776884]
[1732175737916,17.2313,241.5,241.33,29.50929129]
[1732175738635,17.2313,241.5,241.35,23.776884]
[1732175739249,21.3721,241.5,241.35,23.776884]
[1732175741124,17.2313,241.5,241.34,5.73240729]
[1732175741342,17.2313,241.5,241.35,5.73240729]
[1732175741544,17.2313,241.5,241.36,23.776884]
[1732175753559,21.3721,241.5,241.35,5.73240729]
[1732175753750,17.2313,241.5,241.32,2.2393]
[1732175753951,21.3721,241.5,241.3,5.73240729]
[1732175754451,21.3721,241.5,241.27,2.8662611]
[1732175754452,7.247,241.49,241.27,2.8662611]
[1732175754652,7.247,241.49,241.26,2.2393]
[1732175754847,7.247,241.49,241.26,2.7393]
[1732175755030,7.247,241.49,241.26,7.97170729]
[1732175755235,18.0171,241.48,241.26,7.97170729]
[1732175755537,4.1413,241.47,241.26,7.97170729]
[1732175755752,18.0171,241.44,241.2,7.48115883]
[1732175756057,18.0171,241.44,241.21,5.73240729]
[1732175756361,18.0171,241.44,241.21,7.39070729]
[1732175756539,14.4945,241.47,241.21,1.6583]
[1732175756540,16.7458,241.42,241.21,1.6583]
[1732175756939,14.4945,241.47,241.21,1.6583]
[1732175756940,17.3668,241.39,241.21,1.6583]
[1732175757568,17.3668,241.39,241.12,6.23240729]
[1732175757760,17.3668,241.37,241.13,7.39120729]
[1732175758236,17.3668,241.37,241.14,23.776884]
[1732175758861,7.226,241.36,241.13,7.39120729]
[1732175759068,17.3668,241.35,241.13,7.39120729]
[1732175759648,17.3668,241.35,241.13,5.73240729]
[1732175759956,17.3668,241.32,241.1,1.659]
[1732175760337,20.0,241.31,241.1,1.659]
[1732175760538,17.3668,241.26,241.1,1.659]
[1732175761547,17.4432,241.24,241.09,5.73240729]
[1732175761760,17.4432,241.24,241.11,5.73240729]
[1732175762059,17.4432,241.24,241.12,23.776884]
[1732175763548,17.4432,241.24,241.13,1.6588]
[1732175763749,17.4432,241.24,241.14,23.776884]
[1732175765043,17.4432,241.24,241.16,23.776884]
[1732175766059,17.4432,241.24,241.14,23.776884]
[1732175766875,17.4432,241.24,241.14,29.50929129]
[1732175767055,17.4432,241.24,241.14,28.64053831]
[1732175768076,17.4432,241.24,241.14,26.98183831]
[1732175771152,17.4432,241.24,241.16,23.776884]
[1732175772762,17.4432,241.24,241.17,1.6585]
[1732175772970,17.4432,241.24,241.18,23.776884]
[1732175773973,17.4432,241.24,241.19,1.6584]
[1732175774275,17.4432,241.24,241.2,23.776884]
[1732175774872,17.4432,241.24,241.21,1.6583]
[1732175776670,17.4432,241.24,241.22,23.776884]
[1732175777660,17.4432,241.24,241.21,1.6583]
[1732175778362,17.4432,241.24,241.13,0.5]
[1732175778363,17.4432,241.24,241.11,1.6589]
[1732175779562,17.4432,241.24,241.12,23.776884]
[1732175780156,17.4432,241.24,241.11,1.6589]
[1732175781082,21.5884,241.24,241.11,1.6589]
[1732175781259,15.8939,241.22,241.11,1.6589]
[1732175782378,15.8939,241.22,241.04,5.73240729]
[1732175782577,15.8939,241.22,241.06,23.776884]
[1732175782879,15.8939,241.22,241.08,23.776884]
[1732175783188,15.8939,241.22,241.1,23.776884]
[1732175784383,6.4674,241.23,241.05,1.6594]
[1732175784384,15.9289,241.2,241.05,1.6594]
[1732175784785,15.9289,241.18,241.05,1.6594]
[1732175785877,15.9289,241.18,241.06,30.13125597]
[1732175786079,15.9289,241.18,241.06,34.8731148]
[1732175786885,15.9289,241.18,241.06,35.3731148]
[1732175787392,15.9289,241.18,241.08,23.776884]
[1732175787578,15.9289,241.18,241.1,23.776884]
[1732175788863,15.9289,241.18,241.12,23.776884]
[1732175789182,15.9289,241.18,241.11,1.6589]
[1732175791011,15.9289,241.18,241.05,23.776884]
[1732175792061,15.9289,241.18,241.07,23.776884]
[1732175792986,15.9289,241.18,241.07,1.6592]
[1732175795695,15.9289,241.18,241.08,29.50929129]
[1732175796481,15.9289,241.18,241.1,23.776884]
[1732175796662,15.9289,241.18,241.1,29.50929129]
[1732175797598,15.9289,241.18,241.11,1.6589]
[1732175800281,15.9289,241.18,241.12,24.39873462]
[1732175800464,15.9289,241.18,241.12,30.13114191]
[1732175802490,15.9289,241.18,241.14,23.776884]
[1732175802665,15.9289,241.18,241.15,5.73240729]
[1732175802873,14.1054,241.18,241.16,23.776884]
[1732175803069,14.1054,241.18,241.17,29.50929129]
[1732175803697,6.3967,241.25,241.18,23.776884]
[1732175803874,6.3967,241.25,241.19,5.73240729]
[1732175804070,6.3967,241.25,241.2,23.776884]
[1732175804477,6.3967,241.25,241.12,24.276884]
[1732175804675,6.3967,241.25,241.15,23.776884]
[1732175804874,6.3967,241.25,241.16,5.73240729]
[1732175805074,6.3967,241.25,241.17,23.776884]
[1732175806393,6.3967,241.25,241.16,5.73240729]
[1732175806765,16.1902,241.24,241.16,5.73240729]
[1732175809272,16.1902,241.24,241.1,2.87539202]
[1732175809473,16.1902,241.24,241.1,5.73240729]
[1732175809775,6.286,241.23,241.1,5.73240729]
[1732175809984,15.7381,241.22,241.1,5.73240729]
[1732175810772,15.7381,241.22,241.11,23.776884]
[1732175810979,15.7381,241.22,241.12,5.73240729]
[1732175814199,15.7381,241.22,241.13,23.776884]
[1732175814390,15.7381,241.22,241.14,5.73240729]
[1732175818100,15.7381,241.22,241.09,2.91684339]
[1732175818406,15.7381,241.22,241.08,5.73240729]
[1732175818708,15.7381,241.22,241.09,5.73240729]
[1732175819496,15.7381,241.22,241.1,23.776884]
[1732175819705,15.7381,241.22,241.1,5.73240729]
[1732175820089,15.7381,241.22,241.11,23.776884]
[1732175820287,15.7381,241.22,241.1,5.73240729]
[1732175820486,16.1961,241.2,241.1,5.73240729]
[1732175821793,16.1961,241.2,241.1,10.47426612]
[1732175821990,16.1961,241.2,241.11,5.73240729]
[1732175822188,16.1961,241.2,241.12,23.776884]
[1732175822391,16.1961,241.2,241.13,5.73240729]
[1732175825586,16.1961,241.2,241.08,23.776884]
[1732175826095,16.1961,241.2,241.08,5.73240729]
[1732175827316,16.1961,241.2,241.09,23.776884]
[1732175827702,16.1961,241.2,241.09,29.50929129]
[1732175828019,16.1961,241.2,241.05,7.55423972]
[1732175828020,16.1961,241.2,241.11,23.776884]
[1732175828214,16.1961,241.2,241.12,10.47426612]
[1732175828413,16.1961,241.2,241.13,23.776884]
[1732175828619,16.1961,241.2,241.14,5.73240729]
[1732175829088,16.1961,241.2,241.1,23.776884]
[1732175829489,16.1961,241.2,241.12,23.776884]
[1732175829689,16.1961,241.2,241.14,23.776884]
[1732175830010,16.1961,241.2,241.14,29.50929129]
[1732175830327,16.1961,241.2,241.15,5.73240729]
[1732175830615,16.1961,241.2,241.16,23.776884]
[1732175831313,16.1961,241.2,241.15,5.73240729]
[1732175836039,16.1961,241.2,241.15,20.5617339]
[1732175837515,16.1961,241.2,241.19,14.82932661]
[1732175839620,16.1961,241.2,241.19,38.60621061]
[1732175843726,16.1961,241.2,241.19,44.3386179]
[1732175844518,15.8641,241.26,241.2,23.776884]
[1732175844706,15.8641,241.26,241.25,38.60621061]
[1732175847408,15.8641,241.26,241.25,14.82932661]
[1732175847722,15.8641,241.26,241.21,20.5617339]
[1732175847914,15.8641,241.26,241.21,14.82932661]
[1732175853536,15.8641,241.26,241.25,14.82932661]
[1732175853932,15.8641,241.26,241.23,14.82932661]
[1732175855738,15.8641,241.26,241.25,14.82932661]
[1732175856543,15.8641,241.26,241.25,38.60621061]
[1732175858740,15.8641,241.26,241.25,33.25823841]
[1732175860130,15.8641,241.26,241.25,23.776884]
[1732175861240,15.8641,241.26,241.2,23.776884]
[1732175861429,15.8641,241.26,241.23,23.776884]
[1732175861638,15.8641,241.26,241.24,9.48135441]
[1732175863323,15.8641,241.26,241.14,23.776884]
[1732175863528,15.8641,241.26,241.2,23.776884]
[1732175863841,15.8641,241.26,241.21,9.48135441]
[1732175864446,15.8641,241.26,241.23,9.48135441]
[1732175864746,15.8641,241.26,241.23,15.2135735]
[1732175865127,15.8641,241.26,241.21,9.48135441]
[1732175866432,15.8641,241.26,241.18,29.50910309]
[1732175866757,15.8641,241.26,241.21,9.48135441]
[1732175867446,15.8641,241.26,241.18,29.50910309]
[1732175867629,15.8641,241.26,241.18,15.2135735]
[1732175868133,15.8641,241.26,241.18,5.73221909]
[1732175868333,15.8641,241.26,241.19,9.48135441]
[1732175870450,15.8641,241.26,241.18,5.73221909]
[1732175870630,15.8641,241.26,241.19,9.48135441]
[1732175870826,15.8641,241.26,241.18,5.73221909]
[1732175871938,15.8641,241.26,241.23,9.48135441]
[1732175872140,15.8641,241.26,241.24,5.73221909]
[1732175875236,15.8641,241.26,241.25,33.25823841]
[1732175877342,15.8641,241.26,241.25,23.776884]
[1732175877543,15.8641,241.26,241.25,33.25823841]
[1732175878444,15.8641,241.26,241.25,23.776884]
[1732175879051,15.8641,241.26,241.25,33.25823841]
[1732175879258,15.8641,241.26,241.24,5.73221909]
[1732175879556,15.8641,241.26,241.21,9.48135441]
[1732175880060,15.8641,241.26,241.25,9.48135441]
[1732175880237,15.8641,241.26,241.23,9.48135441]
[1732175881456,15.8641,241.26,241.23,15.2135735]
[1732175881842,15.8641,241.26,241.25,33.25823841]
[1732175882153,15.8641,241.26,241.25,29.50910309]
[1732175883236,15.8641,241.26,241.22,9.48135441]
[1732175884257,15.8641,241.26,241.2,9.48135441]
[1732175890170,6.3294,241.25,241.2,9.48135441]
[1732175891140,6.3294,241.25,241.22,9.48135441]
[1732175892240,6.3294,241.25,241.19,5.73221909]
[1732175892449,6.3294,241.25,241.22,9.48135441]
[1732175898572,6.3294,241.25,241.19,5.73221909]
[1732175898871,6.3294,241.25,241.19,9.48135441]
[1732175904454,6.3294,241.25,241.14,10.47407792]
[1732175904455,6.3294,241.25,241.24,9.48135441]
[1732175904657,6.3294,241.25,241.24,38.9904575]
[1732175907484,15.8641,241.26,241.24,38.9904575]
[1732175907666,15.8641,241.26,241.25,9.48135441]
[1732175908463,15.8641,241.26,241.25,38.9904575]
[1732175908864,16.4527,241.32,241.26,23.776884]
[1732175909179,16.4527,241.32,241.31,33.25823841]
[1732175909975,16.4527,241.32,241.27,5.73221909]
[1732175910183,16.4527,241.32,241.3,9.48135441]
[1732175910361,16.4527,241.32,241.31,33.25823841]
[1732175911478,16.4527,241.32,241.31,23.776884]
[1732175911660,16.4527,241.32,241.31,33.25823841]
[1732175913784,16.4527,241.32,241.31,38.9904575]
[1732175913973,15.2017,241.38,241.32,23.776884]
[1732175914178,15.2017,241.38,241.37,9.48135441]
[1732175915489,15.2017,241.38,241.36,9.48135441]
[1732175915785,15.2017,241.38,241.33,5.73221909]
[1732175915786,15.2017,241.38,241.37,9.48135441]
[1732175915986,15.2017,241.38,241.33,5.73221909]
[1732175916171,15.2017,241.38,241.31,9.48135441]
[1732175916577,15.2017,241.38,241.32,9.48135441]
[1732175916772,15.2017,241.38,241.31,9.48135441]
[1732175917787,15.2017,241.38,241.3,9.48135441]
[1732175917991,6.4979,241.37,241.28,33.25823841]
[1732175919199,16.3254,241.36,241.28,23.776884]
[1732175920567,16.3254,241.36,241.27,5.73221909]
[1732175920893,16.5592,241.35,241.23,9.48135441]
[1732175921591,16.5592,241.35,241.25,9.48135441]
[1732175922394,15.552,241.33,241.23,9.48135441]
[1732175923078,15.552,241.33,241.22,9.48135441]
[1732175923274,15.552,241.33,241.23,23.776884]
[1732175924102,15.552,241.33,241.23,33.25823841]
[1732175925084,15.7194,241.31,241.19,5.73221909]
[1732175925282,3.3376348,241.42,241.19,5.73221909]
[1732175925283,6.2304,241.3,241.19,5.73221909]
[1732175925604,15.7194,241.29,241.15,9.48135441]
[1732175925806,4.1437,241.33,241.15,9.48135441]
[1732175925807,15.3445,241.27,241.15,9.48135441]
[1732175926475,6.2304,241.28,241.15,9.48135441]
[1732175926476,6.2981,241.26,241.15,9.48135441]
[1732175926684,15.3445,241.23,241.12,15.2135735]
[1732175927891,15.3445,241.23,241.1,9.48135441]
[1732175928288,15.3445,241.23,241.12,9.48135441]
[1732175930021,15.3445,241.23,241.13,29.50910309]
[1732175930213,15.3445,241.23,241.14,9.48135441]
[1732175931311,15.3445,241.23,241.15,9.48135441]
[1732175931518,15.3445,241.23,241.18,9.48135441]
[1732175931886,15.3445,241.23,241.17,9.48135441]
[1732175932287,15.3445,241.23,241.2,9.48135441]
[1732175932608,15.3445,241.23,241.16,23.776884]
[1732175932609,15.3445,241.23,241.21,9.48135441]
[1732175933687,15.3445,241.23,241.16,23.776884]
[1732175933688,15.3445,241.23,241.22,9.48135441]
[1732175933888,15.3445,241.23,241.22,33.25823841]
[1732175935785,6.3216,241.3,241.22,33.25823841]
[1732175936030,15.8939,241.29,241.26,9.48135441]
[1732175936412,15.8939,241.29,241.23,23.776884]
[1732175936722,15.8939,241.29,241.25,9.48135441]
[1732175940285,15.8939,241.29,241.22,5.73221909]
[1732175940508,15.8939,241.29,241.23,9.48135441]
[1732175949008,15.8939,241.29,241.22,5.73221909]
[1732175949203,15.8939,241.29,241.21,9.48135441]
[1732175954629,15.8939,241.29,241.23,9.48135441]
[1732175955229,6.1601,241.19,241.04,9.48135441]
[1732175955440,15.6503,241.18,241.06,9.48135441]
[1732175956002,15.6503,241.18,240.98,0.1]
[1732175956003,15.6503,241.18,241.15,9.48135441]
[1732175956819,15.6503,241.18,241.16,9.48135441]
[1732175958305,15.6503,241.18,241.17,9.48135441]
[1732175958712,15.6503,241.18,241.17,14.82331116]
[1732175959319,15.6503,241.18,241.17,38.60019516]
[1732175959511,15.2638,241.24,241.17,14.82331116]
[1732175959717,15.2638,241.24,241.13,14.82331116]
[1732175961132,15.22648305,241.24,241.13,14.82331116]
[1732175962219,15.22648305,241.24,241.11,14.82331116]
[1732175962521,6.6507,241.18,240.98,0.1]
[1732175962725,6.6507,241.18,241.03,14.82331116]
[1732175962927,6.6507,241.18,241.01,14.82331116]
[1732175963340,0.5,241.16,241.01,14.82331116]
[1732175963535,23.776884,241.17,241.01,14.82331116]
[1732175963835,0.5,241.16,241.01,14.82331116]
[1732175964026,15.6446,241.15,241.01,14.82331116]
[1732175964230,15.6446,241.14,241.01,14.82331116]
[1732175964635,15.6446,241.14,241.05,14.82331116]
[1732175965050,15.6446,241.14,241.02,38.60019516]
[1732175965555,15.6446,241.14,241.04,14.82331116]
[1732175965721,15.6446,241.14,241.05,23.776884]
[1732175966225,15.6446,241.14,241.06,14.82331116]
[1732175967732,15.6446,241.14,241.05,23.776884]
[1732175967935,15.6446,241.14,241.06,14.82331116]
[1732175970643,15.6446,241.14,241.05,23.776884]
[1732175970644,15.6446,241.14,241.07,23.776884]
[1732175970841,15.6446,241.14,241.05,23.776884]
[1732175970842,15.6446,241.14,241.12,14.82331116]
[1732175974535,15.4623,241.21,241.13,23.776884]
[1732175974740,15.4623,241.21,241.17,14.82331116]
[1732175975429,0.5,241.36,241.13,23.776884]
[1732175975430,21.8522,241.37,241.2,23.776884]
[1732175975628,15.5746,241.36,241.23,14.82331116]
[1732175975843,15.5746,241.36,241.19,23.776884]
[1732175976047,15.5746,241.36,241.2,14.82331116]
[1732175976549,15.8307,241.35,241.19,23.776884]
[1732175981246,15.8307,241.35,241.2,14.82331116]
[1732175985157,15.5977,241.33,241.2,14.82331116]
[1732175986859,15.5977,241.33,241.12,23.776884]
[1732175987062,6.5731,241.3,241.12,14.82331116]
[1732175987238,16.188,241.29,241.12,14.82331116]
[1732175988754,16.188,241.29,241.13,23.776884]
[1732175990247,15.3384,241.27,241.12,23.776884]
[1732175990853,15.3384,241.27,241.08,14.82331116]
[1732175992663,15.3384,241.27,241.09,23.776884]
[1732175998645,15.3384,241.27,241.09,33.26974568]
[1732175998846,15.553,241.25,241.09,33.26974568]
[1732176000448,15.553,241.25,241.12,23.776884]
[1732176000764,15.553,241.25,241.15,9.49286168]
[1732176000954,15.553,241.25,241.11,23.776884]
[1732176001774,15.553,241.25,241.12,9.49286168]
[1732176003570,15.553,241.25,241.11,28.93768652]
[1732176005178,15.553,241.25,241.14,9.49286168]
[1732176005371,15.553,241.25,241.15,23.776884]
[1732176005673,15.553,241.25,241.15,28.93768652]
[1732176006576,15.553,241.25,241.14,23.776884]
[1732176007276,15.553,241.25,241.18,9.49286168]
[1732176007455,15.553,241.25,241.16,33.26974568]
[1732176008157,15.553,241.25,241.18,9.49286168]
[1732176008697,15.553,241.25,241.16,23.776884]
[1732176008698,15.553,241.25,241.24,23.776884]
[1732176008849,15.553,241.25,241.23,9.49286168]
[1732176009051,15.553,241.25,241.22,23.776884]
[1732176009663,15.553,241.25,241.21,9.49286168]
[1732176010069,15.553,241.25,241.19,23.776884]
[1732176010278,15.553,241.25,241.18,23.776884]
[1732176011169,15.553,241.25,241.2,14.8245929]
[1732176011370,15.553,241.25,241.24,38.6014769]
[1732176011876,6.341,241.32,241.25,23.776884]
[1732176011877,15.1212,241.31,241.25,23.776884]
[1732176012057,15.1212,241.31,241.24,14.8245929]
[1732176012058,15.1212,241.31,241.3,38.6014769]
[1732176013550,15.1212,241.31,241.28,14.8245929]
[1732176014153,6.5795,241.3,241.2,4.81408105]
[1732176014358,6.5795,241.3,241.08,0.5]
[1732176014577,15.2846,241.29,241.16,14.8245929]
[1732176015576,15.2846,241.29,241.17,23.776884]
[1732176015969,15.2846,241.29,241.16,14.8245929]
[1732176016892,15.2846,241.29,241.18,14.8245929]
[1732176017559,15.2846,241.29,241.16,14.8245929]
[1732176017759,15.2846,241.29,241.17,23.776884]
[1732176017959,15.2846,241.29,241.16,14.8245929]
[1732176018189,15.2846,241.29,241.14,14.8245929]
[1732176018691,15.2846,241.29,241.16,14.8245929]
[1732176019367,15.2846,241.29,241.17,23.776884]
[1732176019867,15.2846,241.29,241.18,14.8245929]
[1732176020071,15.2846,241.29,241.22,14.8245929]
[1732176020290,15.2846,241.29,241.2,38.6014769]
[1732176020668,15.2846,241.29,241.22,14.8245929]
[1732176020870,15.2846,241.29,241.24,14.8245929]
[1732176024379,15.2846,241.29,241.25,23.776884]
[1732176025281,15.2846,241.29,241.22,14.8245929]
[1732176025475,15.2846,241.29,241.23,23.776884]
[1732176026200,15.2846,241.29,241.24,14.8245929]
[1732176026585,15.2846,241.29,241.26,14.8245929]
[1732176027284,15.2846,241.29,241.28,14.8245929]
[1732176027675,15.2846,241.29,241.28,38.6014769]
[1732176028200,16.0153,241.6,241.52,0.5]
[1732176028398,13.5283,241.6,241.58,17.2779929]
[1732176028700,6.5968,241.7,241.58,23.7638898]
[1732176028869,6.5968,241.7,241.66,14.8245929]
[1732176029076,6.4,241.79,241.68,14.8245929]
[1732176029292,6.4,241.79,241.74,14.8245929]
[1732176030278,6.2753,241.88,241.78,14.8245929]
[1732176030477,6.2753,241.88,241.82,14.8245929]
[1732176030776,6.2753,241.88,241.81,23.5950609]
[1732176031295,6.2753,241.88,241.83,23.5950609]
[1732176031679,21.6915,241.88,241.85,23.5950609]
[1732176032005,21.6915,241.88,241.87,23.5950609]
[1732176032190,21.6915,241.88,241.85,23.5950609]
[1732176032583,21.6915,241.88,241.83,37.14378113]
[1732176033395,21.6915,241.88,241.84,1.65106454]
[1732176033603,21.6915,241.88,241.85,1.65106454]
[1732176033787,21.6915,241.88,241.83,37.14378113]
[1732176033990,21.6915,241.88,241.84,1.6510638]
[1732176034193,21.6915,241.88,241.85,25.2461247]
[1732176034389,21.6915,241.88,241.86,1.6510638]
[1732176034580,21.6915,241.88,241.87,1.6510638]
[1732176035113,15.4162,241.88,241.87,25.2461247]
[1732176035407,6.5588,241.97,241.87,25.2461247]
[1732176035408,6.5588,241.97,241.88,23.776884]
[1732176035699,6.5588,241.97,241.89,3.71471389]
[1732176035888,6.5588,241.97,241.9,1.6510638]
[1732176036215,6.5588,241.97,241.91,3.71444277]
[1732176036498,6.5588,241.97,241.92,1.6510638]
[1732176036708,6.5588,241.97,241.86,23.5950609]
[1732176036878,6.5588,241.97,241.87,3.71427322]
[1732176037081,6.5588,241.97,241.86,23.5950609]
[1732176038387,15.8047,241.96,241.86,23.5950609]
[1732176040098,15.8047,241.96,241.82,23.5950609]
[1732176042206,15.8047,241.96,241.84,23.5950609]
[1732176042386,15.8047,241.96,241.86,23.5950609]
[1732176045190,15.8047,241.96,241.84,30.53567833]
[1732176045419,16.3047,241.96,241.82,23.5950609]
[1732176045623,16.3047,241.96,241.8,23.5950609]
[1732176046623,15.8047,241.96,241.81,23.776884]
[1732176046794,16.3047,241.96,241.81,23.776884]
[1732176047200,16.3047,241.96,241.83,23.776884]
[1732176048223,0.5,241.94,241.81,6.94061743]
[1732176048396,0.5,241.94,241.78,23.5950609]
[1732176049526,16.3047,241.96,241.82,23.5950609]
[1732176049814,15.8047,241.96,241.86,23.5950609]
[1732176051302,15.8047,241.96,241.84,47.3719449]
[1732176051924,15.8047,241.96,241.87,23.776884]
[1732176052795,15.8047,241.96,241.88,23.5950609]
[1732176053304,15.8047,241.96,241.87,23.776884]
[1732176053898,15.8047,241.96,241.88,23.5950609]
[1732176055600,15.8047,241.96,241.85,47.3719449]
[1732176055804,15.8047,241.96,241.84,6.94061743]
[1732176056098,20.4376,241.96,241.79,23.5950609]
[1732176056303,20.4376,241.96,241.72,0.5]
[1732176056304,20.4376,241.96,241.8,23.5950609]
[1732176057021,20.4376,241.96,241.8,30.53567833]
[1732176057604,20.4376,241.96,241.81,23.776884]
[1732176058013,15.8047,241.96,241.87,23.5950609]
[1732176058239,15.8047,241.96,241.87,30.53567833]
[1732176060602,15.8047,241.96,241.87,6.94061743]
[1732176060825,19.9377,241.96,241.8,23.5950609]
[1732176061514,19.9377,241.96,241.81,23.5950609]
[1732176061704,19.9377,241.96,241.82,23.5950609]
[1732176063525,19.9377,241.96,241.85,23.5950609]
[1732176063730,15.8047,241.96,241.86,6.94061743]
[1732176063927,15.8047,241.96,241.86,30.53567833]
[1732176064135,15.8047,241.96,241.86,6.94061743]
[1732176064313,15.8047,241.96,241.84,23.5950609]
[1732176064511,15.8047,241.96,241.85,23.776884]
[1732176065112,15.8047,241.96,241.86,23.5950609]
[1732176065320,15.8047,241.96,241.89,23.5950609]
[1732176066125,15.8047,241.96,241.9,23.5950609]
[1732176067111,15.8047,241.96,241.93,23.5950609]
[1732176067314,1.47215361,241.96,241.93,23.5950609]
[1732176067508,1.47215361,241.96,241.92,23.776884]
[1732176067509,1.47215361,241.96,241.95,23.5950609]
[1732176067734,9.69830092,242.07,241.95,23.5950609]
[1732176068041,6.873,242.07,241.98,23.5950609]
[1732176068929,6.873,242.07,242.01,23.5950609]
[1732176070442,23.8398,242.07,242.01,23.5950609]
[1732176070627,23.8398,242.07,242.01,30.53567833]
[1732176071008,23.8398,242.07,242.03,23.5950609]
[1732176071633,23.8398,242.07,242.01,6.94061743]
[1732176071634,23.8398,242.07,242.05,23.5950609]
[1732176072312,23.8398,242.07,242.06,1.6498378]
[1732176072832,6.7771,242.15,242.06,25.4267218]
[1732176073033,6.7771,242.15,242.09,23.5950609]
[1732176073219,6.7771,242.15,242.1,1.6498378]
[1732176073414,6.7771,242.15,242.09,30.53567833]
[1732176073415,6.7771,242.15,242.11,1.6498378]
[1732176073626,6.7771,242.15,242.12,1.6498378]
[1732176073816,6.7771,242.15,242.13,1.6498378]
[1732176074029,6.7771,242.15,242.11,23.5950609]
[1732176074213,6.7771,242.15,242.13,23.5950609]
[1732176074412,17.1105,242.17,242.13,23.5950609]
[1732176074611,17.1105,242.17,242.16,23.5950609]
[1732176074806,17.1105,242.17,242.14,6.94061743]
[1732176074807,17.1105,242.17,242.14,30.53567833]
[1732176075510,17.1105,242.17,242.15,23.5950609]
[1732176075709,17.1105,242.17,242.16,30.53567833]
[1732176075915,17.1105,242.17,242.16,6.94061743]
[1732176076132,17.1105,242.17,242.16,30.53567833]
[1732176076540,17.1105,242.17,242.16,6.94061743]
[1732176077041,17.1105,242.17,242.16,30.53567833]
[1732176077342,6.6585,242.21,242.17,23.776884]
[1732176077519,6.6585,242.21,242.19,23.5950609]
[1732176077719,6.6585,242.21,242.2,6.94061743]
[1732176078315,6.6585,242.21,242.17,23.5950609]
[1732176078518,25.91172246,242.72,242.09,23.776884]
[1732176078519,16.2342,242.33,242.19,23.5950609]
[1732176078733,0.5,242.31,242.18,6.94061743]
[1732176079038,20.3608,242.33,242.18,6.94061743]
[1732176079039,20.8608,242.33,242.19,23.5950609]
[1732176079212,16.2342,242.33,242.2,6.94061743]
[1732176079638,16.2342,242.33,242.21,47.3719449]
[1732176079839,16.2342,242.33,242.23,23.5950609]
[1732176080047,16.2342,242.33,242.24,6.94061743]
[1732176080820,16.2342,242.33,242.21,47.3719449]
[1732176081033,16.2342,242.33,242.21,23.5950609]
[1732176081425,0.5,242.31,242.17,23.5950609]
[1732176081625,0.5,242.28,242.14,23.5950609]
[1732176081825,16.0707,242.26,242.12,23.5950609]
[1732176082324,16.0707,242.26,242.13,23.5950609]
[1732176082931,16.0707,242.26,242.15,23.5950609]
[1732176083126,16.0707,242.26,242.14,23.5950609]
[1732176083352,16.0707,242.26,242.13,23.5950609]
[1732176083517,16.0707,242.26,242.12,23.5950609]
[1732176083722,16.0707,242.26,242.13,23.5950609]
[1732176083940,16.0707,242.26,242.13,23.776884]
[1732176084248,16.0707,242.26,242.13,47.3719449]
[1732176084447,16.0707,242.26,242.15,23.5950609]
[1732176084627,16.0707,242.26,242.13,47.3719449]
[1732176086048,16.5707,242.26,242.11,23.5950609]
[1732176086223,0.5,242.24,242.09,23.5950609]
[1732176086824,1.0,242.24,242.08,6.63204076]
[1732176087049,1.0,242.24,242.08,30.22710166]
[1732176087247,0.5,242.2,242.04,23.5950609]
[1732176087452,0.5,242.2,242.05,30.22710166]
[1732176087624,0.5,242.2,242.06,23.5950609]
[1732176087825,0.5,242.2,242.07,23.5950609]
[1732176088341,4.1284,242.22,242.09,23.5950609]
[1732176088547,23.4237,242.23,242.1,23.5950609]
[1732176089046,23.4237,242.23,242.08,0.22710166]
[1732176089237,23.4237,242.23,242.09,23.5950609]
[1732176089436,23.4237,242.23,242.1,23.5950609]
[1732176090043,23.4237,242.23,242.11,23.5950609]
[1732176090643,23.4237,242.23,242.12,23.5950609]